[Event "44th Chess Olympiad Open 2022"]
[Site "Chennai"]
[Date "2022.08.01"]
[Round "4.1"]
[White "Cornette, Matthieu"]
[Black "Erigaisi Arjun"]
[Result "1/2-1/2"]
[WhiteElo "2551"]
[BlackElo "2689"]
[Annotator "TA"]
[PlyCount "48"]
[EventDate "2022.??.??"]
[TimeControl "60"]

{[%evp 9,48,0,6,0,0,0,0,0,0,0,0,0,0,0,0,0,0,0,0,0,0,0,0,0,0,0,0,0,0,0,0,0,0,0,
0,0,0,0,0,0,0]} 1. e4 {[%emt 0:00:05]} c5 {[%emt 0:00:07]} 2. Nf3 {[%emt 0:00:
00][%cal Yg1f3,Yf3d4,Yd4f5]} d6 {[%emt 0:00:05]} 3. Bb5+ {[%emt 0:00:00]} Nd7 {
[%emt 0:00:08][%cal Yb8d7,Yd7c5,Yc5e4]} 4. d4 {[%emt 0:00:00]} cxd4 {[%emt 0:
00:07]} 5. Nxd4 {[%emt 0:00:19]} Ngf6 {[%emt 0:00:07] The position is equal.}
6. O-O {[%emt 0:00:27] B51: Sicilian: Moscow Variation (3 Bb5+) without 3...
Bd7.} e5 {[%emt 0:00:22]} 7. Nf5 {[%emt 0:00:33]} a6 {[%emt 0:00:06]} 8. Bd3 {
[%emt 0:01:07]} Nc5 {[%emt 0:00:07]} 9. Nc3 {[%emt 0:00:00]} d5 {[%emt 0:00:10]
[%cal Rd5e4]} 10. Bg5 {[%emt 0:00:56] [#] Black must now prevent Nxd5.} dxe4 {
[%emt 0:00:18]} 11. Bxe4 {[%emt 0:01:45]} Ncxe4 {[%emt 0:00:17]} 12. Nxg7+ {
[%emt 0:01:36]} Bxg7 {[%emt 0:00:07]} 13. Qxd8+ {[%emt 0:00:04]} Kxd8 {[%emt 0:
00:07]} 14. Nxe4 {[%emt 0:00:03]} Ke7 {[%emt 0:00:00] [#] And now ...Bf5 would
win.} 15. f4 {[%emt 0:00:07]} Ke6 {[%emt 0:00:00]} 16. f5+ {[%emt 0:00:23]} Ke7
{[%emt 0:00:05]} 17. Rad1 {[%emt 0:00:26]} a5 {[%emt 0:00:05] ...Ra6 is the
strong threat.} (17... h6 $5 18. Bh4 a5 $14) 18. Rd5 $1 {[%emt 0:01:04]} Ra6 {
[%emt 0:00:07] Threatens to win with ...Rd8.} 19. Re1 $36 {[%emt 0:01:16] [#]
Hoping for Nxf6. White has good play.} h6 $5 $146 {[%emt 0:00:15] An
interesting novelty.} ({Predecessor:} 19... Kf8 20. Rxe5 Ng4 21. Be7+ Kg8 22.
Rd5 h6 23. h3 Nf6 24. Nxf6+ Rxf6 25. Bxf6 Bxf6 {1-0 (52) Libiszewski,F (2514)
-Wachinger,N (2376) Germany 2022}) 20. Bh4 {[%emt 0:00:11]} Kf8 {[%emt 0:00:07]
} ({Don't take} 20... Bxf5 21. Rxe5+ Be6 22. Rf1 $16) 21. Rd8+ {[%emt 0:00:06]}
Ke7 {[%emt 0:00:06]} 22. Rd5 {[%emt 0:00:02]} Kf8 {[%emt 0:00:06]} (22... Bxf5
23. Rxe5+ Be6 24. Rf1 $16) 23. Rd8+ Ke7 {[%emt 0:00:30]} 24. Rd5 Kf8 {[%emt 0:
00:30] An interesting draw. Weighted Error Value: White=0.00 (flawless) /
Black=0.00 (flawless)} ({Don't do} 24... Bxf5 25. Rxe5+ Be6 26. Rf1 $16)
1/2-1/2

[Event "44th Chess Olympiad Open 2022"]
[Site "Chennai"]
[Date "2022.08.01"]
[Round "4.2"]
[White "Caruana, Fabiano"]
[Black "Abdusattorov, Nodirbek"]
[Result "0-1"]
[WhiteElo "2783"]
[BlackElo "2688"]
[Annotator "TA"]
[PlyCount "122"]
[EventDate "2022.??.??"]
[TimeControl "60"]

{[%evp 9,122,0,18,15,14,11,18,16,14,12,10,19,23,-25,-39,-39,-59,-66,-41,-41,
-36,-50,-46,-59,-33,-22,-22,-71,-66,-67,-15,-44,-43,-61,-22,-26,-30,-24,-29,
-23,0,-58,-70,-93,-44,-44,-44,-47,-30,-37,-11,-29,0,0,-8,-6,-9,-67,-44,-41,-25,
-90,-29,-37,0,-109,0,-45,0,-94,-93,-152,-100,-86,-93,-91,0,0,0,-172,-165,-172,
-172,-172,-157,-157,-157,-157,-154,-251,-251,-251,-251,-251,-251,-1052,-251,
-251,-251,-872,-841,-1318,-1366,-1004,-1065,-1697,-1862,-1513,-2147,-2010,
-1864,-1897,-1687,-1507,-897]} 1. d4 {[%emt 0:00:03]} d5 {[%emt 0:00:07]} 2.
Bf4 {[%emt 0:00:11]} Nf6 {[%emt 0:01:12]} 3. e3 {[%emt 0:00:06]} c5 {[%emt 0:
00:00]} 4. Nf3 {[%emt 0:00:11]} Nc6 {[%emt 0:00:36]} 5. Nbd2 {[%emt 0:00:07]}
cxd4 {[%emt 0:03:13]} 6. exd4 {[%emt 0:00:07] D02:1 d4 d5 2 Nf3 sidelines,
including 2...Nf6 3 g3 and 2...Nf6 3 Bf4.} Bf5 {[%emt 0:01:13]} 7. Bb5 {
[%emt 0:00:17]} Qb6 {[%emt 0:06:06]} 8. c4 {[%emt 0:01:18] The position is
equal.} dxc4 {[%emt 0:02:47]} 9. a4 {[%emt 0:00:06]} Bd3 {[%emt 0:12:11]} 10.
Ne5 {[%emt 0:09:09]} e6 $1 {[%emt 0:00:15]} (10... Qxd4 $2 11. Nxc6 bxc6 12.
Bxc6+ Nd7 13. Be3 Qxb2 14. Bxa8 $18) 11. Qf3 {[%emt 0:17:12]} (11. Ndxc4 {
is superior.} Bb4+ 12. Bd2 Bxd2+ 13. Qxd2 Bxc4 14. Nxc4) 11... Rc8 $11 {
[%emt 0:08:21] [#]} 12. Nxd3 $146 {[%emt 0:28:48]} ({Predecessor:} 12. d5 exd5
13. Nxd3 cxd3 14. O-O Be7 15. Rae1 Qd8 16. Bxd3 O-O 17. Qh3 Bb4 18. Bf5 {
½-½ (45) Gukesh,D (2599)-Del Prado Rodriguez,X (2279) Carballo 2021}) 12...
cxd3 {[%emt 0:00:07]} 13. Qxd3 {[%emt 0:00:02]} a6 {[%emt 0:01:08]} 14. Nc4 {
[%emt 0:01:44]} Bb4+ {[%emt 0:01:27]} 15. Bd2 {[%emt 0:02:21]} Bxd2+ {[%emt 0:
00:00]} 16. Qxd2 {[%emt 0:00:05]} Qc7 {[%emt 0:02:12]} (16... Qd8 $5 {[%cal
Ra6b5]} 17. Bxc6+ Rxc6 $15) 17. Bxc6+ {[%emt 0:00:07]} Qxc6 {[%emt 0:00:05]}
18. Ne3 {[%emt 0:00:06]} (18. O-O $1 $11 {should be considered.}) 18... O-O $17
{[%emt 0:03:01]} 19. O-O {[%emt 0:00:25]} Ne4 {[%emt 0:07:49]} (19... Qb6 $15)
20. Qb4 {[%emt 0:03:14][%cal Yd4d5]} Rfd8 {[%emt 0:01:01]} 21. a5 {[%emt 0:00:
00]} Nd6 {[%emt 0:03:40]} 22. Rfd1 {[%emt 0:06:20]} Nb5 {[%emt 0:02:29]} 23. d5
{[%emt 0:05:50]} exd5 {[%emt 0:00:05]} 24. Nf5 {[%emt 0:00:02] Against d4.
Strongly threatening Ne7+.} Qc5 {[%emt 0:00:23]} 25. Qh4 {[%emt 0:03:08]} (25.
Qf4 $1 $11 Qc7 26. Qg4) 25... f6 $1 $15 {[%emt 0:01:37]} 26. Qg4 {[%emt 0:00:
00][%csl Gf5][%cal Rg4g7]} g6 {[%emt 0:02:29]} (26... Rc7 $1 $17 27. Nd4 Re8
28. Nxb5 Qxb5) 27. Nd4 {[%emt 0:02:16]} Nxd4 {[%emt 0:04:08]} 28. Rxd4 {
[%emt 0:00:04]} Kf7 {[%emt 0:08:24]} 29. h4 {[%emt 0:01:04]} (29. Re1 Re8 30.
Rf1 Qb5 $17) 29... Qb5 {[%emt 0:01:42]} 30. Re1 {[%emt 0:03:23]} Re8 {[%emt 0:
00:00] Inhibits Qe6+.} (30... Qd7 $5 {[%cal Rd7g4]}) 31. Red1 {[%emt 0:01:15]}
Rc4 {[%emt 0:00:18]} 32. Rxc4 {[%emt 0:01:22]} dxc4 $11 {[%emt 0:00:05]
Endgame KQR-KQR} 33. h5 {[%emt 0:01:54]} (33. Qd4 $11) 33... gxh5 {[%emt 0:02:
20]} 34. Qf4 {[%emt 0:00:10]} Kg6 {[%emt 0:02:24]} 35. Qc7 {[%emt 0:00:00]} (
35. Qg3+ $11 Kf7 36. Qf4) 35... Re4 {[%emt 0:04:34]} (35... h4 $17 36. Rd4 Re1+
37. Kh2 Qe5+ 38. Qxe5 Rxe5 39. Rg4+ Rg5) 36. Qc8 {[%emt 0:00:00]} Re8 {[%emt 0:
02:55]} ({Better is} 36... Re7 $15) 37. Qc7 $17 {[%emt 0:00:00]} Re4 {[%emt 0:
02:28]} (37... h4 $1 $17 38. Rd4 Re1+ 39. Kh2 Qe5+ 40. Qxe5 Rxe5 41. Rxc4 Rxa5)
38. Qc8 $1 $15 {[%emt 0:00:00]} Qb4 {[%emt 0:00:41]} 39. Kh2 {[%emt 0:00:00]} (
39. Qg8+ $11 {keeps the balance.} Kh6 40. Qh8 (40. Rd7 {gets mated.} Qe1+ 41.
Kh2 Rh4+ 42. Kg3 Qe5+ 43. Kf3 Qe4+ 44. Kg3 Qf4#)) 39... Qe7 $1 $17 {[%emt 0:01:
34]} ({Reject} 39... Qxa5 $6 40. Qg8+ Kh6 41. Qf8+ Kg6 42. Qg8+ Kh6 43. Qf8+
Kg6 44. Qg8+ $11) 40. g3 {[%emt 0:02:58] [#]} (40. Rd5 $2 Qe6 41. Qxe6 Rxe6 $19
) ({White should try} 40. Kg1) 40... h4 {[%emt 0:06:25]} (40... Qe6 $142 $1 {
[%cal Re6c8]} 41. Qxb7 h4) 41. Qg8+ {[%emt 0:04:13]} Kh6 {[%emt 0:03:49]} 42.
Kg2 {[%emt 0:00:16]} f5 {[%emt 0:08:21]} ({Black should play} 42... Qe8 $17 43.
Qxe8 Rxe8) 43. Qc8 $11 {[%emt 0:04:19]} hxg3 {[%emt 0:00:00]} 44. Qxf5 $2 {
[%emt 0:12:34] Black converts the advantage convincingly.} (44. Rd7 $1 $11 Qe8
45. Qxb7 gxf2 46. Rxh7+ Kg5 47. Qg7+ Qg6 48. Kxf2) 44... Rh4 $19 {[%emt 0:00:
07]} 45. Kxg3 {[%emt 0:01:50]} Rh5 $36 {[%emt 0:00:07] ( -> ...Qh4+). Black is
really pushing.} 46. Qf4+ {[%emt 0:01:18]} Qg5+ {[%emt 0:00:14]} 47. Qg4 {
[%emt 0:01:32] [#]} Qxg4+ $1 {[%emt 0:00:47]} 48. Kxg4 $17 {[%emt 0:00:03]
Intending Rd6+ and mate. KR-KR} Rg5+ {[%emt 0:00:00]} ({Weaker is} 48... Rxa5
49. Rd6+ Kg7 50. Rd7+ Kf6 51. Rxb7 $17) 49. Kf4 {[%emt 0:03:30]} (49. Kh4 $17)
49... Rxa5 $19 {[%emt 0:01:07]} 50. Rd6+ {[%emt 0:00:06]} Kh5 {[%emt 0:00:49]}
51. Rd7 {[%emt 0:00:10]} Rb5 {[%emt 0:00:00]} 52. Rxh7+ {[%emt 0:00:05]} Kg6 {
[%emt 0:00:03]} 53. Rc7 {[%emt 0:00:08]} Rxb2 {[%emt 0:00:16]} 54. Ke5 $2 {
[%emt 0:00:15]} (54. Rxc4 Rxf2+ 55. Ke4) 54... b5 {[%emt 0:01:54] Black is
clearly winning.} 55. Rc6+ {[%emt 0:00:06]} Kh5 {[%emt 0:01:59]} 56. f4 {
[%emt 0:01:05]} a5 {[%emt 0:00:17][%cal Ya6a5,Ya5a4,Ya4a3] And now ...a4 would
win.} 57. f5 {[%emt 0:00:32]} a4 {[%emt 0:00:33]} 58. Rc8 {[%emt 0:01:07]} a3 {
[%emt 0:01:26] aiming for ...a2.} 59. Rh8+ {[%emt 0:00:42]} Kg5 {[%emt 0:00:25]
Hoping for ...a2.} 60. Rg8+ {[%emt 0:00:05]} Kh6 {[%emt 0:00:22] White must
now prevent ...a2.} 61. f6 {[%emt 0:00:53]} Rf2 {[%emt 0:01:02] Weighted Error
Value: White=0.49/Black=0.14 (very precise)} 0-1

[Event "44th Chess Olympiad Open 2022"]
[Site "Chennai"]
[Date "2022.08.01"]
[Round "4.2"]
[White "So, Wesley"]
[Black "Sindarov, Javokhir"]
[Result "1-0"]
[WhiteElo "2773"]
[BlackElo "2629"]
[Annotator "TA"]
[PlyCount "55"]
[EventDate "2022.??.??"]
[TimeControl "60"]

{[%evp 9,55,21,19,17,20,15,31,26,49,45,74,55,81,55,56,29,32,29,96,99,99,99,87,
94,187,195,191,196,189,184,210,204,262,268,256,252,282,233,300,289,306,293,289,
297,305,283,857,824]} 1. d4 {[%emt 0:00:10]} Nf6 {[%emt 0:00:23]} 2. c4 {
[%emt 0:00:09]} g6 {[%emt 0:00:57]} 3. h4 {[%emt 0:00:15]} c5 {[%emt 0:07:23]}
4. d5 {[%emt 0:00:08]} b5 {[%emt 0:03:30]} 5. cxb5 {[%emt 0:00:10]} a6 {
[%emt 0:00:04]} 6. e3 {[%emt 0:00:09] E60: King's Indian: Unusual lines and
Fianchetto Variation without Nc3.} axb5 {[%emt 0:15:47]} 7. Bxb5 {[%emt 0:00:
00]} Qa5+ {[%emt 0:01:24]} 8. Nc3 {[%emt 0:00:07] White is slightly better.}
Ba6 {[%emt 0:00:02] [#]} 9. Bxa6 $146 {[%emt 0:00:32]} ({Predecessor:} 9. Be2
Ne4 10. Bd2 Nxd2 11. Qxd2 Bg7 12. h5 O-O 13. Nf3 Bxe2 14. Kxe2 d6 15. hxg6 hxg6
{0-1 (34) Adhiban,B (2659)-Bernadskiy,V (2629) Chess.com INT 2020}) 9... Qxa6 {
[%emt 0:00:04]} 10. Nge2 {[%emt 0:10:28]} Bg7 {[%emt 0:03:33]} 11. O-O {
[%emt 0:02:39]} O-O {[%emt 0:02:22]} 12. a4 {[%emt 0:00:18]} Qc4 {[%emt 0:00:
00]} 13. g3 {[%emt 0:00:47]} e6 {[%emt 0:03:03]} (13... d6 $11) 14. b3 $16 {
[%emt 0:04:54]} Qg4 {[%emt 0:01:58]} 15. Ba3 {[%emt 0:09:02]} Na6 {[%emt 0:00:
00]} 16. Rc1 {[%emt 0:02:22]} exd5 {[%emt 0:22:40]} (16... e5 $16) 17. Nf4 $18
{[%emt 0:01:29]} Rfb8 {[%emt 0:00:12]} 18. Nb5 {[%emt 0:08:08]} (18. Nfxd5 $6
Qxd1 19. Rfxd1 Rxb3 $16) (18. Ncxd5 Qxd1 19. Rfxd1 Nxd5 20. Rxd5 d6 $16) 18...
Qxd1 {[%emt 0:08:04]} 19. Rfxd1 {[%emt 0:00:02]} d6 {[%emt 0:00:08]} 20. Bb2 {
[%emt 0:05:32]} (20. Nxd6 $6 Rxb3 21. Bxc5 Nxc5 $16) (20. Nxd5 Nxd5 21. Rxd5
Bf8) 20... Rb7 {[%emt 0:09:09]} 21. Bxf6 {[%emt 0:02:02]} (21. Nxd5 $6 Nxd5 22.
Bxg7 Nxe3 $16) (21. Nxd6 Rxb3 22. Bxf6 Bxf6 $18) 21... Bxf6 {[%emt 0:00:04]}
22. Nxd5 {[%emt 0:00:05]} (22. Nxd6 $6 Rxb3 23. Nxd5 Bd8 $18) 22... Bg7 {
[%emt 0:01:20]} 23. Rd3 {[%emt 0:08:07]} ({But not} 23. Nxd6 $6 Rxb3 24. a5 Ra3
$18) 23... Rab8 {[%emt 0:00:21]} 24. g4 {[%emt 0:03:11]} ({Don't take} 24. Nxd6
$6 Rxb3 25. Rdd1 Ra3 26. Ne7+ Kf8 $18) 24... c4 {[%emt 0:01:09]} 25. Rxc4 {
[%emt 0:05:48]} Nc5 {[%emt 0:00:04]} 26. Rd1 {[%emt 0:00:11]} ({Stronger than} 
26. Nxd6 Nxd3 27. Nxb7 Rxb7 $11) 26... Nxb3 {[%emt 0:00:06]} 27. Nxd6 {[%emt 0:
00:00] Pair of Knights!} Ra7 {[%emt 0:00:14] [#]} (27... Rd7 28. Ne4 Kh8) 28.
Nc8 {[%emt 0:00:27] Weighted Error Value: White=0.05 (flawless) /Black=0.20 
(precise)} 1-0

[Event "44th Chess Olympiad Open 2022"]
[Site "Chennai"]
[Date "2022.08.01"]
[Round "4.2"]
[White "Yakubboev, Nodirbek"]
[Black "Aronian, Levon"]
[Result "1/2-1/2"]
[WhiteElo "2620"]
[BlackElo "2775"]
[Annotator "TA"]
[PlyCount "71"]
[EventDate "2022.??.??"]
[TimeControl "60"]

{[%evp 13,71,38,40,22,15,0,0,0,0,0,0,0,0,5,4,0,0,-2,0,0,0,0,0,0,0,0,0,0,0,0,0,
-13,0,0,0,0,0,0,0,0,0,0,0,0,0,0,0,0,0,0,0,0,0,0,0,0,0,0,0,0]} 1. e4 {[%emt 0:
00:00]} e5 {[%emt 0:00:07]} 2. Nf3 {[%emt 0:00:03]} Nc6 {[%emt 0:00:07]} 3. Bc4
{[%emt 0:00:09]} Nf6 {[%emt 0:00:11]} 4. d3 {[%emt 0:00:12]} Be7 {[%emt 0:00:
00]} 5. O-O {[%emt 0:05:24]} O-O {[%emt 0:00:12]} 6. a4 {[%emt 0:06:01]} d5 {
[%emt 0:04:21]} 7. exd5 {[%emt 0:00:14]} Nxd5 {[%emt 0:00:04]} 8. Re1 $1 {
[%emt 0:03:51] The main line 8.Re1 scores better than 8.h3. C55: Two Knights:
4 d3, 4 d4 exd4 5 e5 and Max Lange Attack.} Bg4 {[%emt 0:00:53] The position
is equal.} 9. h3 {[%emt 0:00:36]} Bxf3 {[%emt 0:00:52]} 10. Qxf3 {[%emt 0:00:
00]} Nb6 {[%emt 0:00:05]} 11. Nd2 {[%emt 0:10:40]} Nxc4 {[%emt 0:00:24]} 12.
Nxc4 {[%emt 0:00:08]} f6 {[%emt 0:00:04]} 13. c3 {[%emt 0:09:12]} a5 {[%emt 0:
00:00]} 14. Qg3 {[%emt 0:15:41] [#]} Qd7 $146 {[%emt 0:07:41]} ({Predecessor:} 
14... Kh8 15. f4 Bc5+ 16. Kh2 Qd7 17. Be3 Bxe3 18. Rxe3 exf4 19. Qxf4 Rae8 20.
Rae1 Rxe3 21. Qxe3 {½-½ (65) Inkiov,V (2467)-Migot,T (2381) Avoine 2016}) 15.
Bh6 {[%emt 0:05:27][%csl Gh6][%cal Rg3g7] [#]} Rf7 {[%emt 0:00:47]} 16. Rad1 {
[%emt 0:01:09]} Bf8 {[%emt 0:00:39]} 17. Be3 {[%emt 0:06:15]} Re8 {[%emt 0:00:
00]} 18. f4 {[%emt 0:03:12]} b6 {[%emt 0:05:44]} 19. b3 {[%emt 0:04:54]} Rfe7 {
[%emt 0:12:15]} 20. fxe5 {[%emt 0:02:51]} Nxe5 {[%emt 0:00:08]} 21. Nxe5 {
[%emt 0:01:07]} Rxe5 {[%emt 0:00:42]} 22. Bf4 {[%emt 0:02:28]} Rxe1+ {[%emt 0:
00:00]} 23. Rxe1 {[%emt 0:00:02]} Rxe1+ {[%emt 0:00:30]} 24. Qxe1 $11 {[%emt 0:
00:00] Endgame KQB-KQB} Kf7 {[%emt 0:00:18]} 25. Qe4 {[%emt 0:06:31]} Bd6 {
[%emt 0:00:06]} 26. Bxd6 {[%emt 0:03:53]} Qxd6 {[%emt 0:00:03] KQ-KQ} 27. b4 {
[%emt 0:00:56] Prevents Qc5+.} Qe6 {[%emt 0:01:23]} 28. Qxe6+ {[%emt 0:00:00]}
Kxe6 {[%emt 0:00:04]} 29. bxa5 {[%emt 0:00:05]} bxa5 {[%emt 0:00:04] KP-KP} 30.
Kf2 {[%emt 0:00:04]} g5 {[%emt 0:00:44]} 31. Ke3 {[%emt 0:03:21]} f5 {[%emt 0:
03:46]} 32. g3 {[%emt 0:01:51]} Kd5 {[%emt 0:05:23]} 33. Kf3 {[%emt 0:00:00]}
Ke5 {[%emt 0:00:36]} 34. Ke3 {[%emt 0:00:24]} Kd5 {[%emt 0:00:17]} 35. Kf3 {
[%emt 0:00:07]} Ke5 {[%emt 0:00:09]} 36. Ke3 {[%emt 0:00:05] A balanced but
interesting game. Weighted Error Value: White=0.02 (flawless) /Black=0.01 
(flawless)} 1/2-1/2

[Event "44th Chess Olympiad Open 2022"]
[Site "Chennai"]
[Date "2022.08.01"]
[Round "4.2"]
[White "Vakhidov, Jakhongir"]
[Black "Shankland, Sam"]
[Result "1/2-1/2"]
[WhiteElo "2564"]
[BlackElo "2720"]
[Annotator "TA"]
[PlyCount "119"]
[EventDate "2022.??.??"]
[TimeControl "60"]

{[%evp 9,119,20,20,21,24,35,24,32,26,40,34,16,26,0,0,0,0,0,0,0,0,0,27,33,27,31,
27,25,49,47,50,53,73,59,73,73,74,75,84,75,87,71,93,92,94,86,86,85,111,104,126,
115,114,108,118,72,116,128,148,131,207,194,197,211,200,201,200,186,228,227,232,
232,192,160,179,147,330,312,441,434,767,767,588,767,767,764,756,717,685,623,
1528,1574,1556,1497,1016,0,0,0,0,0,0,0,0,0,0,0,0,0,0,0,0,0]} 1. d4 {[%emt 0:00:
00]} d5 {[%emt 0:00:16]} 2. c4 {[%emt 0:00:08]} e6 {[%emt 0:00:04]} 3. Nc3 {
[%emt 0:00:06]} Nf6 {[%emt 0:00:08]} 4. cxd5 {[%emt 0:00:08]} exd5 {[%emt 0:00:
00]} 5. Bg5 {[%emt 0:00:11]} Bb4 {[%emt 0:00:05]} 6. Qb3 {[%emt 0:00:35] D35:
Queen's Gambit Declined: Exchange Variation.} c5 {[%emt 0:00:50]} 7. dxc5 {
[%emt 0:00:32]} Nc6 {[%emt 0:01:17]} 8. O-O-O {[%emt 0:04:29][%cal Rc3d5] [#]
White has an edge.} Qa5 $146 {[%emt 0:00:29]} ({Predecessor:} 8... Be6 9. e4 d4
10. Bc4 Qe7 11. Bxe6 fxe6 12. Na4 b5 13. cxb6 axb6 14. e5 Nxe5 15. Bxf6 gxf6
16. Rxd4 {1-0 (25) Yankelevich,L (2496)-Jahncke,G (2299) Bastia 2022}) 9. Bxf6
{[%emt 0:06:39]} (9. Nxd5 Qxc5+ 10. Qc2 Qxc2+ 11. Kxc2 Nxd5 12. Rxd5 f6 $17)
9... gxf6 {[%emt 0:00:39]} 10. e3 {[%emt 0:01:42] Against d4} (10. Qxd5 $2 Bxc3
11. Qd3 (11. bxc3 $2 Qa3+ 12. Kd2 Be6 $19) 11... Nb4 12. Qd8+ Qxd8 $19) (10.
Rxd5 Be6 11. e4 Bxc3 12. Qxc3 (12. bxc3 O-O $17) 12... Qxa2 $17) 10... Be6 {
[%emt 0:06:53]} 11. Kb1 {[%emt 0:25:57]} (11. a3 $5 {[%cal Ra3b4]} Bxc5 12. Qb5
$11 (12. Qxb7 O-O $11) (12. Nxd5 O-O-O $15)) 11... O-O-O {[%emt 0:12:55]} 12.
Nxd5 {[%emt 0:10:51]} Bxc5 {[%emt 0:10:47] This bishop pair is nice.} 13. Nf3 {
[%emt 0:11:58] Bc4 is the strong threat.} Bxe3 {[%emt 0:12:53]} 14. fxe3 {
[%emt 0:02:21]} Bxd5 {[%emt 0:00:10]} 15. Bc4 {[%emt 0:00:22]} Bxc4 {[%emt 0:
00:00]} 16. Qxc4 {[%emt 0:00:10]} Qf5+ {[%emt 0:00:47]} 17. Ka1 {[%emt 0:15:57]
} Qe6 {[%emt 0:01:23]} 18. Qf4 {[%emt 0:00:18]} Rhg8 {[%emt 0:13:08]} 19. Nd4 {
[%emt 0:08:20]} Nxd4 {[%emt 0:02:07]} 20. exd4 {[%emt 0:00:04]} Qd6 {[%emt 0:
00:00]} 21. Qf5+ {[%emt 0:00:02]} Kb8 {[%emt 0:00:51]} 22. g3 {[%emt 0:00:07]}
h6 {[%emt 0:02:23]} 23. Rhf1 {[%emt 0:01:21]} Rg6 {[%emt 0:01:03]} 24. a3 {
[%emt 0:01:12]} Qd5 {[%emt 0:01:04]} 25. Qf4+ {[%emt 0:00:42]} Qd6 {[%emt 0:00:
00]} 26. Rde1 {[%emt 0:00:36]} (26. Ka2 {keeps more tension.} h5 27. Rd3 a5 28.
d5) 26... Qxf4 {[%emt 0:02:10]} 27. Rxf4 $16 {[%emt 0:00:01] Endgame KRR-KRR}
Kc7 {[%emt 0:00:06]} 28. Kb1 {[%emt 0:00:16]} Kd6 {[%emt 0:00:00]} 29. Kc2 {
[%emt 0:00:14]} h5 {[%emt 0:00:52]} 30. Kd3 {[%emt 0:00:28]} Rh8 {[%emt 0:00:
39]} 31. Ree4 {[%emt 0:00:30]} a6 {[%emt 0:01:42]} 32. Rf5 {[%emt 0:01:01]} (
32. b4 $142) 32... Rhh6 {[%emt 0:00:19]} 33. Ref4 {[%emt 0:00:00] White is
much more active.} Ke6 {[%emt 0:01:03]} 34. Kc4 {[%emt 0:01:23]} b6 {[%emt 0:
01:14]} (34... h4 $16) 35. Rd5 $1 $18 {[%emt 0:00:34][%cal Rf4e4]} Rg4 {
[%emt 0:00:42]} 36. Rf2 {[%emt 0:00:52] Threatening mate with Re2+.} Re4 {
[%emt 0:02:11] [#] Against Re2} 37. Rd8 $1 {[%emt 0:00:03] Threatens to win
with Re8+.} Ke7 {[%emt 0:00:06] Prevents Re8+.} 38. Rb8 {[%emt 0:00:14]} b5+ {
[%emt 0:03:45]} 39. Kd5 {[%emt 0:00:44]} Re6 {[%emt 0:01:04]} 40. Rc2 {[%emt 0:
00:00][%cal Rc2c7]} f5 {[%emt 0:01:56]} 41. Rc7+ {[%emt 0:31:21]} Kf6 {[%emt 0:
00:00]} 42. Rf8 {[%emt 0:00:00]} Rh7 {[%emt 0:00:00]} (42... Re7 $16 {keeps
fighting.} 43. Rxe7 Kxe7) 43. Rc6 {[%emt 0:00:00]} Rxc6 {[%emt 0:00:00]} (43...
Ke7 $142 44. Rxf7+ Kxf7 45. Rxe6 h4 46. Rxa6 hxg3 47. hxg3 Rh2) 44. Kxc6 {
[%emt 0:00:00] Hoping for d5. KR-KR} h4 {[%emt 0:00:00]} (44... Rh6 $142 45.
Ra8 Ke7+ 46. Kc5 h4 47. Ra7+ Kf8) 45. d5 {[%emt 0:00:00][%cal Yd4d5,Yd5d6,
Yd6d7]} hxg3 {[%emt 0:00:00]} 46. hxg3 {[%emt 0:00:00] And now d6 would win.}
Rh2 {[%emt 0:00:00]} 47. d6 {[%emt 0:00:00] Black must now prevent d7.} Rc2+ {
[%emt 0:00:00]} 48. Kd7 {[%emt 0:00:00]} Rxb2 {[%emt 0:00:00]} 49. Kd8 {
[%emt 0:02:18] aiming for d7.} a5 {[%emt 0:00:00]} 50. d7 {[%emt 0:00:36]} Rc2
{[%emt 0:00:00]} 51. Rh8 {[%emt 0:00:45]} b4 {[%emt 0:00:00]} 52. a4 $2 {
[%emt 0:01:15]} ({Inferior is} 52. Rh6+ Kg7 53. axb4 (53. Rh1 b3 $11) 53...
Kxh6 $11) (52. axb4 $18 Kg7 {[#]} 53. b5 $1 (53. Ke7 Re2+ 54. Kd8 Kxh8 $11)
53... Kxh8 54. b6) 52... b3 $11 {[%emt 0:00:00] The position is equal.} 53.
Rh6+ {[%emt 0:00:11]} Kg7 {[%emt 0:00:00]} 54. Rb6 {[%emt 0:00:08]} b2 {
[%emt 0:00:00]} 55. Rb5 {[%emt 0:00:56]} Kg6 {[%emt 0:01:28]} 56. Ke7 {[%emt 0:
00:00]} Re2+ {[%emt 0:00:01]} 57. Kd6 {[%emt 0:00:16]} Rd2+ {[%emt 0:00:02]}
58. Kc6 {[%emt 0:00:24]} Rc2+ {[%emt 0:00:12]} 59. Kb7 {[%emt 0:01:00]} (59.
Kb6 Rd2) 59... Rd2 {[%emt 0:00:06]} 60. Kc7 {[%emt 0:01:26] White really could
win this. Weighted Error Value: White=0.14 (very precise) /Black=0.16 (very
precise)} 1/2-1/2